Workbook

Sheet 在籍率％
A2: 2009 | B2: 小 | C2: 小級 | D2: ％ | E2: 中 | F2: 中級 | G2: ％ | H2: 小中 | I2: 小中級 | J2: ％ | K2: 小養 | L2: % | M2: 小級養 | N2: ％ | O2: 中養 | P2: % | Q2: 中級養 | R2: ％ | S2: 小中養 | T2: ％ | U2: 小中障全 | V2: ％ | W2: 高 | X2: 高養 | Y2: ％
A3: 北海道 | B3: 278684 | C3: 5118 | D3: =(C3/B3)*100 -> 1.836488639 | E3: 149060 | F3: 2415 | G3: =(F3/E3)*100 -> 1.620152959 | H3: =B3+E3 -> 427744 | I3: =C3+F3 -> 7533 | J3: =(I3/H3)*100 -> 1.761100097 | K3: 1144 | L3: =(K3/B3)*100 -> 0.4105007822 | M3: =C3+K3 -> 6262 | N3: =(M3/B3)*100 -> 2.246989422 | O3: 865 | P3: =(O3/E3)*100 -> 0.5803032336 | Q3: =F3+O3 -> 3280 | R3: =(Q3/E3)*100 -> 2.200456192 | S3: =K3+O3 -> 2009 | T3: =(S3/H3)*100 -> 0.4696734495 | U3: =I3+S3 -> 9542 | V3: =(U3/H3)*100 -> 2.230773547 | W3: 164749 | X3: 2533 | Y3: =(X3/W3)*100 -> 1.537490364
A4: 青森 | B4: 76894 | C4: 852 | D4: =(C4/B4)*100 -> 1.108018831 | E4: 42567 | F4: 424 | G4: =(F4/E4)*100 -> 0.9960767731 | H4: 119461 | I4: 1276 | J4: =(I4/H4)*100 -> 1.068131022 | K4: 562 | L4: =(K4/B4)*100 -> 0.7308762712 | M4: =C4+K4 -> 1414 | N4: =(M4/B4)*100 -> 1.838895102 | O4: 418 | P4: =(O4/E4)*100 -> 0.9819813471 | Q4: =F4+O4 -> 842 | R4: =(Q4/E4)*100 -> 1.97805812 | S4: =K4+O4 -> 980 | T4: 0.8203514118 | U4: 2256 | V4: 1.888482434 | W4: 43519 | X4: 617 | Y4: =(X4/W4)*100 -> 1.417771548
A5: 岩手 | B5: 73284 | C5: 824 | D5: 1.124392773 | E5: 39391 | F5: 427 | G5: 1.08400396 | H5: 112675 | I5: 1251 | J5: 1.110272909 | K5: 408 | L5: 0.5567381693 | M5: 1232 | N5: 1.681130943 | O5: 344 | P5: 0.8732959305 | Q5: 771 | R5: 1.957299891 | S5: 752 | T5: 0.6674062569 | U5: 2003 | V5: 1.777679166 | W5: 42008 | X5: 662 | Y5: 1.575890307
A6: 宮城 | B6: 129708 | C6: 1652 | D6: 1.27363 | E6: 66506 | F6: 784 | G6: 1.178841007 | H6: 196214 | I6: 2436 | J6: 1.241501626 | K6: 606 | L6: 0.4672032565 | M6: 2258 | N6: 1.740833256 | O6: 438 | P6: 0.6585871951 | Q6: 1222 | R6: 1.837428202 | S6: 1044 | T6: 0.5320721253 | U6: 3480 | V6: 1.773573751 | W6: 66038 | X6: 993 | Y6: 1.5036797
A7: 秋田 | B7: 54090 | C7: 582 | D7: 1.07598447 | E7: 30610 | F7: 234 | G7: 0.7644560601 | H7: 84700 | I7: 816 | J7: 0.9634002361 | K7: 313 | L7: 0.5786651877 | M7: 895 | N7: 1.654649658 | O7: 287 | P7: 0.9376020908 | Q7: 521 | R7: 1.702058151 | S7: 600 | T7: 0.7083825266 | U7: 1416 | V7: 1.671782763 | W7: 30849 | X7: 485 | Y7: 1.572174139
A8: 山形 | B8: 64207 | C8: 731 | D8: 1.138505147 | E8: 34809 | F8: 356 | G8: 1.022724008 | H8: 99016 | I8: 1087 | J8: 1.097802375 | K8: 240 | L8: 0.3737910197 | M8: 971 | N8: 1.512296167 | O8: 194 | P8: 0.557327128 | Q8: 550 | R8: 1.580051136 | S8: 434 | T8: 0.4383129999 | U8: 1521 | V8: 1.536115375 | W8: 36945 | X8: 435 | Y8: 1.177425903
A9: 福島 | B9: 119587 | C9: 1188 | D9: 0.9934190171 | E9: 63682 | F9: 594 | G9: 0.9327596495 | H9: 183269 | I9: 1782 | J9: 0.9723412034 | K9: 641 | L9: 0.5360114394 | M9: 1829 | N9: 1.529430456 | O9: 539 | P9: 0.8463930153 | Q9: 1133 | R9: 1.779152665 | S9: 1180 | T9: 0.6438623008 | U9: 2962 | V9: 1.616203504 | W9: 66589 | X9: 817 | Y9: 1.226929373
A10: 茨城 | B10: 169903 | C10: 3177 | D10: 1.869890467 | E10: 87140 | F10: 1468 | G10: 1.684645398 | H10: 257043 | I10: 4645 | J10: 1.807090642 | K10: 1217 | L10: 0.7162910602 | M10: 4394 | N10: 2.586181527 | O10: 822 | P10: 0.9433096167 | Q10: 2290 | R10: 2.627955015 | S10: 2039 | T10: 0.7932524908 | U10: 6684 | V10: 2.600343133 | W10: 94107 | X10: 1287 | Y10: 1.367592209
A11: 栃木 | B11: 113232 | C11: 1701 | D11: 1.502225519 | E11: 57967 | F11: 857 | G11: 1.478427381 | H11: 171199 | I11: 2558 | J11: 1.494167606 | K11: 775 | L11: 0.6844354953 | M11: 2476 | N11: 2.186661015 | O11: 520 | P11: 0.8970621216 | Q11: 1377 | R11: 2.375489503 | S11: 1295 | T11: 0.756429652 | U11: 3853 | V11: 2.250597258 | W11: 59109 | X11: 940 | Y11: 1.59028236
A12: 群馬 | B12: 117138 | C12: 1216 | D12: 1.038091823 | E12: 59734 | F12: 584 | G12: 0.97766766 | H12: 176872 | I12: 1800 | J12: 1.017685106 | K12: 590 | L12: 0.5036794209 | M12: 1806 | N12: 1.541771244 | O12: 442 | P12: 0.7399470988 | Q12: 1026 | R12: 1.717614759 | S12: 1032 | T12: 0.5834727939 | U12: 2832 | V12: 1.601157899 | W12: 56340 | X12: 828 | Y12: 1.469648562
A13: 埼玉 | B13: 398034 | C13: 3189 | D13: 0.8011878382 | E13: 197933 | F13: 1682 | G13: 0.8497825022 | H13: 595967 | I13: 4871 | J13: 0.8173271339 | K13: 1756 | L13: 0.4411683424 | M13: 4945 | N13: 1.242356181 | O13: 1194 | P13: 0.6032344278 | Q13: 2876 | R13: 1.45301693 | S13: 2950 | T13: 0.4949938503 | U13: 7821 | V13: 1.312320984 | W13: 178549 | X13: 2436 | Y13: 1.36433136
A14: 千葉 | B14: 338011 | C14: 4287 | D14: 1.268301919 | E14: 165018 | F14: 1900 | G14: 1.151389545 | H14: 503029 | I14: 6187 | J14: 1.229948969 | K14: 1633 | L14: 0.4831203718 | M14: 5920 | N14: 1.751422291 | O14: 1102 | P14: 0.6678059363 | Q14: 3002 | R14: 1.819195482 | S14: 2735 | T14: 0.5437062277 | U14: 8922 | V14: 1.773655197 | W14: 150543 | X14: 2216 | Y14: 1.472004676
A15: 東京 | B15: 594326 | C15: 4940 | D15: 0.8311936547 | E15: 311305 | F15: 2883 | G15: 0.9261014118 | H15: 905631 | I15: 7823 | J15: 0.8638176034 | K15: 3382 | L15: 0.5690479636 | M15: 8322 | N15: 1.400241618 | O15: 2147 | P15: 0.6896773261 | Q15: 5030 | R15: 1.615778738 | S15: 5529 | T15: 0.6105135535 | U15: 13352 | V15: 1.474331157 | W15: 326869 | X15: 4362 | Y15: 1.334479562
A16: 神奈川 | B16: 488120 | C16: 6872 | D16: 1.407850529 | E16: 230944 | F16: 2961 | G16: 1.282129001 | H16: 719064 | I16: 9833 | J16: 1.367472158 | K16: 1950 | L16: 0.3994919282 | M16: 8822 | N16: 1.807342457 | O16: 1354 | P16: 0.5862893169 | Q16: 4315 | R16: 1.868418318 | S16: 3304 | T16: 0.459486221 | U16: 13137 | V16: 1.826958379 | W16: 199491 | X16: 3186 | Y16: 1.597064529
A17: 新潟 | B17: 129053 | C17: 2398 | D17: 1.858151302 | E17: 67776 | F17: 1021 | G17: 1.506432956 | H17: 196829 | I17: 3419 | J17: 1.737040782 | K17: 488 | L17: 0.3781392141 | M17: 2886 | N17: 2.236290516 | O17: 463 | P17: 0.6831326723 | Q17: 1484 | R17: 2.189565628 | S17: 951 | T17: 0.4831605099 | U17: 4370 | V17: 2.220201291 | W17: 70368 | X17: 962 | Y17: 1.367098681
A18: 富山 | B18: 60459 | C18: 681 | D18: 1.126383169 | E18: 30918 | F18: 229 | G18: 0.740668866 | H18: 91377 | I18: 910 | J18: 0.9958742353 | K18: 391 | L18: 0.6467192643 | M18: 1072 | N18: 1.773102433 | O18: 305 | P18: 0.9864803674 | Q18: 534 | R18: 1.727149233 | S18: 696 | T18: 0.7616796349 | U18: 1606 | V18: 1.75755387 | W18: 29014 | X18: 395 | Y18: 1.361411732
A19: 石川 | B19: 67132 | C19: 659 | D19: 0.9816480963 | E19: 34052 | F19: 230 | G19: 0.6754375661 | H19: 101184 | I19: 889 | J19: 0.8785974067 | K19: 337 | L19: 0.5019960674 | M19: 996 | N19: 1.483644164 | O19: 239 | P19: 0.7018677317 | Q19: 469 | R19: 1.377305298 | S19: 576 | T19: 0.569259962 | U19: 1465 | V19: 1.447857369 | W19: 33387 | X19: 363 | Y19: 1.087249528
A20: 福井 | B20: 47472 | C20: 501 | D20: 1.055358948 | E20: 25040 | F20: 258 | G20: 1.030351438 | H20: 72512 | I20: 759 | J20: 1.046723301 | K20: 294 | L20: 0.6193124368 | M20: 795 | N20: 1.674671385 | O20: 201 | P20: 0.802715655 | Q20: 459 | R20: 1.833067093 | S20: 495 | T20: 0.6826456311 | U20: 1254 | V20: 1.729368932 | W20: 24523 | X20: 390 | Y20: 1.590343759
A21: 山梨 | B21: 49820 | C21: 598 | D21: 1.200321156 | E21: 27053 | F21: 240 | G21: 0.8871474513 | H21: 76873 | I21: 838 | J21: 1.090109661 | K21: 237 | L21: 0.4757125652 | M21: 835 | N21: 1.676033721 | O21: 228 | P21: 0.8427900787 | Q21: 468 | R21: 1.72993753 | S21: 465 | T21: 0.6048937859 | U21: 1303 | V21: 1.695003447 | W21: 30019 | X21: 346 | Y21: 1.152603351
A22: 長野 | B22: 125832 | C22: 2197 | D22: 1.745978765 | E22: 64918 | F22: 1417 | G22: 2.182753628 | H22: 190750 | I22: 3614 | J22: 1.894626474 | K22: 723 | L22: 0.5745756246 | M22: 2920 | N22: 2.32055439 | O22: 581 | P22: 0.8949751995 | Q22: 1998 | R22: 3.077728827 | S22: 1304 | T22: 0.6836173001 | U22: 4918 | V22: 2.578243775 | W22: 65497 | X22: 1008 | Y22: 1.539001786
A23: 岐阜 | B23: 123777 | C23: 1691 | D23: 1.366166574 | E23: 62816 | F23: 765 | G23: 1.217842588 | H23: 186593 | I23: 2456 | J23: 1.316233728 | K23: 638 | L23: 0.5154430952 | M23: 2329 | N23: 1.881609669 | O23: 467 | P23: 0.7434411615 | Q23: 1232 | R23: 1.961283749 | S23: 1105 | T23: 0.5921979924 | U23: 3561 | V23: 1.90843172 | W23: 57932 | X23: 957 | Y23: 1.651936753
A24: 静岡 | B24: 213771 | C24: 2077 | D24: 0.9716004509 | E24: 108500 | F24: 1110 | G24: 1.023041475 | H24: 322271 | I24: 3187 | J24: 0.9889192636 | K24: 1530 | L24: 0.7157191574 | M24: 3607 | N24: 1.687319608 | O24: 887 | P24: 0.8175115207 | Q24: 1997 | R24: 1.840552995 | S24: 2417 | T24: 0.7499899153 | U24: 5604 | V24: 1.738909179 | W24: 103985 | X24: 1435 | Y24: 1.380006732
A25: 愛知 | B25: 439379 | C25: 4841 | D25: 1.101782288 | E25: 215509 | F25: 2304 | G25: 1.069096882 | H25: 654888 | I25: 7145 | J25: 1.091026252 | K25: 2114 | L25: 0.4811335999 | M25: 6955 | N25: 1.582915888 | O25: 1349 | P25: 0.6259599367 | Q25: 3653 | R25: 1.695056819 | S25: 3463 | T25: 0.5287927096 | U25: 10608 | V25: 1.619818961 | W25: 194476 | X25: 2824 | Y25: 1.452107201
A26: 三重 | B26: 107830 | C26: 1728 | D26: 1.602522489 | E26: 54707 | F26: 705 | G26: 1.288683349 | H26: 162537 | I26: 2433 | J26: 1.496889939 | K26: 327 | L26: 0.3032551238 | M26: 2055 | N26: 1.905777613 | O26: 300 | P26: 0.5483758934 | Q26: 1005 | R26: 1.837059243 | S26: 627 | T26: 0.3857583196 | U26: 3060 | V26: 1.882648259 | W26: 55712 | X26: 621 | Y26: 1.114661114
A27: 滋賀 | B27: 87258 | C27: 1693 | D27: 1.940223246 | E27: 42412 | F27: 582 | G27: 1.372253136 | H27: 129670 | I27: 2275 | J27: 1.754453613 | K27: 553 | L27: 0.6337527791 | M27: 2246 | N27: 2.573976025 | O27: 399 | P27: 0.9407714798 | Q27: 981 | R27: 2.313024616 | S27: 952 | T27: 0.7341713581 | U27: 3227 | V27: 2.488624971 | W27: 39965 | X27: 663 | Y27: 1.658951583
A28: 京都 | B28: 140729 | C28: 1629 | D28: 1.157543932 | E28: 72024 | F28: 864 | G28: 1.199600133 | H28: 212753 | I28: 2493 | J28: 1.171781361 | K28: 675 | L28: 0.4796452757 | M28: 2304 | N28: 1.637189208 | O28: 499 | P28: 0.692824614 | Q28: 1363 | R28: 1.892424747 | S28: 1174 | T28: 0.5518136054 | U28: 3667 | V28: 1.723594967 | W28: 71665 | X28: 989 | Y28: 1.380032094
A29: 大阪 | B29: 498933 | C29: 10440 | D29: 2.092465321 | E29: 247972 | F29: 3619 | G29: 1.459438969 | H29: 746905 | I29: 14059 | J29: 1.882300962 | K29: 1843 | L29: 0.3693882746 | M29: 12283 | N29: 2.461853596 | O29: 1974 | P29: 0.7960576194 | Q29: 5593 | R29: 2.255496588 | S29: 3817 | T29: 0.5110422343 | U29: 17876 | V29: 2.393343196 | W29: 236313 | X29: 3135 | Y29: 1.326630359
A30: 兵庫 | B30: 325442 | C30: 3912 | D30: 1.202057509 | E30: 160879 | F30: 1499 | G30: 0.9317561646 | H30: 486321 | I30: 5411 | J30: 1.112639594 | K30: 975 | L30: 0.2995925541 | M30: 4887 | N30: 1.501650064 | O30: 1046 | P30: 0.6501780842 | Q30: 2545 | R30: 1.581934249 | S30: 2021 | T30: 0.4155691405 | U30: 7432 | V30: 1.528208735 | W30: 146689 | X30: 2170 | Y30: 1.479320194
A31: 奈良 | B31: 79588 | C31: 1515 | D31: 1.903553299 | E31: 41878 | F31: 544 | G31: 1.299011414 | H31: 121466 | I31: 2059 | J31: 1.695124562 | K31: 376 | L31: 0.4724330301 | M31: 1891 | N31: 2.37598633 | O31: 326 | P31: 0.778451693 | Q31: 870 | R31: 2.077463107 | S31: 702 | T31: 0.5779395057 | U31: 2761 | V31: 2.273064067 | W31: 38728 | X31: 578 | Y31: 1.492460235
A32: 和歌山 | B32: 56892 | C32: 747 | D32: 1.313014132 | E32: 30826 | F32: 300 | G32: 0.9732044378 | H32: 87718 | I32: 1047 | J32: 1.193597665 | K32: 432 | L32: 0.759333474 | M32: 1179 | N32: 2.072347606 | O32: 311 | P32: 1.008888601 | Q32: 611 | R32: 1.982093038 | S32: 743 | T32: 0.8470325361 | U32: 1790 | V32: 2.040630201 | W32: 32039 | X32: 491 | Y32: 1.532507257
A33: 鳥取 | B33: 32762 | C33: 611 | D33: 1.864965509 | E33: 17344 | F33: 269 | G33: 1.550968635 | H33: 50106 | I33: 880 | J33: 1.756276693 | K33: 192 | L33: 0.586044808 | M33: 803 | N33: 2.451010317 | O33: 209 | P33: 1.205027675 | Q33: 478 | R33: 2.75599631 | S33: 401 | T33: 0.8003033569 | U33: 1281 | V33: 2.55658005 | W33: 17370 | X33: 319 | Y33: 1.836499712
A34: 島根 | B34: 39009 | C34: 600 | D34: 1.538106591 | E34: 20744 | F34: 379 | G34: 1.827034323 | H34: 59753 | I34: 979 | J34: 1.638411461 | K34: 170 | L34: 0.4357968674 | M34: 770 | N34: 1.973903458 | O34: 176 | P34: 0.8484381026 | Q34: 555 | R34: 2.675472426 | S34: 346 | T34: 0.5790504242 | U34: 1325 | V34: 2.217461885 | W34: 22359 | X34: 501 | Y34: 2.24070844
A35: 岡山 | B35: 112290 | C35: 2340 | D35: 2.083889928 | E35: 56989 | F35: 884 | G35: 1.551176543 | H35: 169279 | I35: 3224 | J35: 1.904548113 | K35: 578 | L35: 0.5147386232 | M35: 2918 | N35: 2.598628551 | O35: 443 | P35: 0.777342996 | Q35: 1327 | R35: 2.328519539 | S35: 1021 | T35: 0.6031462851 | U35: 4245 | V35: 2.507694398 | W35: 56304 | X35: 786 | Y35: 1.39599318
A36: 広島 | B36: 161719 | C36: 2362 | D36: 1.460558129 | E36: 82711 | F36: 941 | G36: 1.137696316 | H36: 244430 | I36: 3303 | J36: 1.351307123 | K36: 529 | L36: 0.3271106054 | M36: 2891 | N36: 1.787668734 | O36: 423 | P36: 0.5114192792 | Q36: 1364 | R36: 1.649115595 | S36: 952 | T36: 0.38947756 | U36: 4255 | V36: 1.740784683 | W36: 79653 | X36: 897 | Y36: 1.126134609
A37: 山口 | B37: 78320 | C37: 1152 | D37: 1.470888662 | E37: 40055 | F37: 510 | G37: 1.273249282 | H37: 118375 | I37: 1662 | J37: 1.404012672 | K37: 377 | L37: 0.4813585291 | M37: 1529 | N37: 1.952247191 | O37: 328 | P37: 0.8188740482 | Q37: 838 | R37: 2.09212333 | S37: 705 | T37: 0.5955649419 | U37: 2367 | V37: 1.999577614 | W37: 38769 | X37: 671 | Y37: 1.73076427
A38: 徳島 | B38: 42041 | C38: 1027 | D38: 2.442853405 | E38: 22010 | F38: 364 | G38: 1.65379373 | H38: 64051 | I38: 1391 | J38: 2.171706921 | K38: 243 | L38: 0.5780071835 | M38: 1270 | N38: 3.020860588 | O38: 205 | P38: 0.9313948205 | Q38: 569 | R38: 2.585188551 | S38: 448 | T38: 0.6994426317 | U38: 1839 | V38: 2.871149553 | W38: 22123 | X38: 336 | Y38: 1.518781359
A39: 香川 | B39: 57458 | C39: 934 | D39: 1.625535174 | E39: 28173 | F39: 255 | G39: 0.9051219252 | H39: 85631 | I39: 1189 | J39: 1.388515841 | K39: 278 | L39: 0.4838316683 | M39: 1212 | N39: 2.109366842 | O39: 277 | P39: 0.9832108757 | Q39: 532 | R39: 1.888332801 | S39: 555 | T39: 0.6481297661 | U39: 1744 | V39: 2.036645607 | W39: 26382 | X39: 392 | Y39: 1.485861572
A40: 愛媛 | B40: 79234 | C40: 1048 | D40: 1.322664513 | E40: 39902 | F40: 440 | G40: 1.102701619 | H40: 119136 | I40: 1488 | J40: 1.248992748 | K40: 324 | L40: 0.4089153646 | M40: 1372 | N40: 1.731579877 | O40: 245 | P40: 0.6140043106 | Q40: 685 | R40: 1.71670593 | S40: 569 | T40: 0.4776054257 | U40: 2057 | V40: 1.726598174 | W40: 39333 | X40: 516 | Y40: 1.311875524
A41: 高知 | B41: 39829 | C41: 673 | D41: 1.689723568 | E41: 21410 | F41: 252 | G41: 1.177020084 | H41: 61239 | I41: 925 | J41: 1.510475351 | K41: 159 | L41: 0.3992066083 | M41: 832 | N41: 2.088930177 | O41: 207 | P41: 0.9668379262 | Q41: 459 | R41: 2.14385801 | S41: 366 | T41: 0.597658355 | U41: 1291 | V41: 2.108133706 | W41: 22015 | X41: 346 | Y41: 1.571655689
A42: 福岡 | B42: 283523 | C42: 2949 | D42: 1.040127256 | E42: 144361 | F42: 1385 | G42: 0.9594003921 | H42: 427884 | I42: 4334 | J42: 1.012891344 | K42: 1487 | L42: 0.5244724414 | M42: 4436 | N42: 1.564599697 | O42: 1146 | P42: 0.7938432125 | Q42: 2531 | R42: 1.753243605 | S42: 2633 | T42: 0.615353694 | U42: 6967 | V42: 1.628245038 | W42: 137504 | X42: 1928 | Y42: 1.402141029
A43: 佐賀 | B43: 52382 | C43: 645 | D43: 1.23133901 | E43: 27833 | F43: 283 | G43: 1.016778644 | H43: 80215 | I43: 928 | J43: 1.156890856 | K43: 258 | L43: 0.4925356038 | M43: 903 | N43: 1.723874613 | O43: 198 | P43: 0.7113857651 | Q43: 481 | R43: 1.728164409 | S43: 456 | T43: 0.5684722309 | U43: 1384 | V43: 1.725363087 | W43: 28736 | X43: 336 | Y43: 1.169265033
A44: 長崎 | B44: 82840 | C44: 679 | D44: 0.8196523419 | E44: 45092 | F44: 356 | G44: 0.7894970283 | H44: 127932 | I44: 1035 | J44: 0.8090235438 | K44: 326 | L44: 0.3935296958 | M44: 1005 | N44: 1.213182038 | O44: 291 | P44: 0.64534729 | Q44: 647 | R44: 1.434844318 | S44: 617 | T44: 0.4822874652 | U44: 1652 | V44: 1.291311009 | W44: 47033 | X44: 605 | Y44: 1.286330874
A45: 熊本 | B45: 103976 | C45: 1336 | D45: 1.284911903 | E45: 55339 | F45: 623 | G45: 1.125788323 | H45: 159315 | I45: 1959 | J45: 1.229639394 | K45: 375 | L45: 0.3606601523 | M45: 1711 | N45: 1.645572055 | O45: 286 | P45: 0.5168145431 | Q45: 909 | R45: 1.642602866 | S45: 661 | T45: 0.4149012962 | U45: 2620 | V45: 1.64454069 | W45: 55619 | X45: 746 | Y45: 1.341268272
A46: 大分 | B46: 65240 | C46: 667 | D46: 1.022378909 | E46: 34336 | F46: 234 | G46: 0.681500466 | H46: 99576 | I46: 901 | J46: 0.9048365068 | K46: 296 | L46: 0.4537093807 | M46: 963 | N46: 1.476088289 | O46: 275 | P46: 0.8009086673 | Q46: 509 | R46: 1.482409133 | S46: 571 | T46: 0.5734313489 | U46: 1472 | V46: 1.478267856 | W46: 35617 | X46: 425 | Y46: 1.193250414
A47: 宮崎 | B47: 66575 | C47: 781 | D47: 1.17311303 | E47: 35888 | F47: 354 | G47: 0.98640214 | H47: 102463 | I47: 1135 | J47: 1.107716932 | K47: 373 | L47: 0.5602703718 | M47: 1154 | N47: 1.733383402 | O47: 252 | P47: 0.7021845742 | Q47: 606 | R47: 1.688586714 | S47: 625 | T47: 0.6099762841 | U47: 1760 | V47: 1.717693216 | W47: 37459 | X47: 536 | Y47: 1.430897782
A48: 鹿児島 | B48: 96763 | C48: 1060 | D48: 1.095460042 | E48: 52687 | F48: 501 | G48: 0.9508987037 | H48: 149450 | I48: 1561 | J48: 1.044496487 | K48: 558 | L48: 0.5766667011 | M48: 1618 | N48: 1.672126743 | O48: 441 | P48: 0.8370186194 | Q48: 942 | R48: 1.787917323 | S48: 999 | T48: 0.668450987 | U48: 2560 | V48: 1.712947474 | W48: 60424 | X48: 734 | Y48: 1.214749106
A49: 沖縄 | B49: 101060 | C49: 988 | D49: 0.9776370473 | E49: 51503 | F49: 392 | G49: 0.7611207114 | H49: 152563 | I49: 1380 | J49: 0.9045443522 | K49: 581 | L49: 0.5749059964 | M49: 1569 | N49: 1.552543044 | O49: 438 | P49: 0.8504358969 | Q49: 830 | R49: 1.611556608 | S49: 1019 | T49: 0.6679207934 | U49: 2399 | V49: 1.572465146 | W49: 52256 | X49: 802 | Y49: 1.53475199
A50: 計 | B50: =SUM(B3:B49) -> 7063606 | C50: =SUM(C3:C49) -> 93488 | D50: 1.323516629 | E50: =SUM(E3:E49) -> 3600323 | F50: =SUM(F3:F49) -> 41678 | G50: 1.157618358 | H50: 10663929 | I50: 135166 | J50: 1.267506563 | K50: =SUM(K3:K49) -> 34254 | L50: 0.4849364475 | M50: 127742 | N50: 1.808453076 | O50: =SUM(O3:O49) -> 26081 | P50: 0.7244072268 | Q50: 67759 | R50: 1.882025585 | S50: 60335 | T50: 0.5657858375 | U50: 195501 | V50: 1.833292401 | W50: =SUM(W3:W49) -> 3524973 | X50: =SUM(X3:X49) -> 50000 | Y50: 1.418450581

Sheet 値％
A2: 2009 | B2: 小 | C2: 小級 | D2: ％ | F2: 2009 | G2: 中 | H2: 中級 | I2: ％ | K2: 2009 | L2: 小中 | M2: 小中級 | N2: ％ | P2: 2009 | Q2: 小 | R2: 小養 | S2: % | U2: 2009 | V2: 小 | W2: 小級養 | X2: ％ | Z2: 2009 | AA2: 中 | AB2: 中養 | AC2: % | AE2: 2009 | AF2: 中 | AG2: 中級養 | AH2: ％ | AJ2: 2009 | AK2: 小中 | AL2: 小中養 | AM2: ％ | AO2: 2009 | AP2: 小中 | AQ2: 小中障全 | AR2: ％ | AT2: 2009 | AU2: 高 | AV2: 高養 | AW2: ％
A3: 埼玉 | B3: 398034 | C3: 3189 | D3: 0.8011878382 | F3: 石川 | G3: 34052 | H3: 230 | I3: 0.6754375661 | K3: 長崎 | L3: 127932 | M3: 1035 | N3: 0.8090235438 | P3: 兵庫 | Q3: 325442 | R3: 975 | S3: 0.2995925541 | U3: 長崎 | V3: 82840 | W3: 1005 | X3: 1.213182038 | Z3: 広島 | AA3: 82711 | AB3: 423 | AC3: 0.5114192792 | AE3: 石川 | AF3: 34052 | AG3: 469 | AH3: 1.377305298 | AJ3: 三重 | AK3: 162537 | AL3: 627 | AM3: 0.3857583196 | AO3: 長崎 | AP3: 127932 | AQ3: 1652 | AR3: 1.291311009 | AT3: 石川 | AU3: 33387 | AV3: 363 | AW3: 1.087249528
A4: 長崎 | B4: 82840 | C4: 679 | D4: 0.8196523419 | F4: 大分 | G4: 34336 | H4: 234 | I4: 0.681500466 | K4: 埼玉 | L4: 595967 | M4: 4871 | N4: 0.8173271339 | P4: 三重 | Q4: 107830 | R4: 327 | S4: 0.3032551238 | U4: 埼玉 | V4: 398034 | W4: 4945 | X4: 1.242356181 | Z4: 熊本 | AA4: 55339 | AB4: 286 | AC4: 0.5168145431 | AE4: 長崎 | AF4: 45092 | AG4: 647 | AH4: 1.434844318 | AJ4: 広島 | AK4: 244430 | AL4: 952 | AM4: 0.38947756 | AO4: 埼玉 | AP4: 595967 | AQ4: 7821 | AR4: 1.312320984 | AT4: 三重 | AU4: 55712 | AV4: 621 | AW4: 1.114661114
A5: 東京 | B5: 594326 | C5: 4940 | D5: 0.8311936547 | F5: 富山 | G5: 30918 | H5: 229 | I5: 0.740668866 | K5: 東京 | L5: 905631 | M5: 7823 | N5: 0.8638176034 | P5: 広島 | Q5: 161719 | R5: 529 | S5: 0.3271106054 | U5: 東京 | V5: 594326 | W5: 8322 | X5: 1.400241618 | Z5: 三重 | AA5: 54707 | AB5: 300 | AC5: 0.5483758934 | AE5: 埼玉 | AF5: 197933 | AG5: 2876 | AH5: 1.45301693 | AJ5: 熊本 | AK5: 159315 | AL5: 661 | AM5: 0.4149012962 | AO5: 石川 | AP5: 101184 | AQ5: 1465 | AR5: 1.447857369 | AT5: 広島 | AU5: 79653 | AV5: 897 | AW5: 1.126134609
A6: 静岡 | B6: 213771 | C6: 2077 | D6: 0.9716004509 | F6: 沖縄 | G6: 51503 | H6: 392 | I6: 0.7611207114 | K6: 石川 | L6: 101184 | M6: 889 | N6: 0.8785974067 | P6: 熊本 | Q6: 103976 | R6: 375 | S6: 0.3606601523 | U6: 大分 | V6: 65240 | W6: 963 | X6: 1.476088289 | Z6: 山形 | AA6: 34809 | AB6: 194 | AC6: 0.557327128 | AE6: 大分 | AF6: 34336 | AG6: 509 | AH6: 1.482409133 | AJ6: 兵庫 | AK6: 486321 | AL6: 2021 | AM6: 0.4155691405 | AO6: 東京 | AP6: 905631 | AQ6: 13352 | AR6: 1.474331157 | AT6: 山梨 | AU6: 30019 | AV6: 346 | AW6: 1.152603351
A7: 沖縄 | B7: 101060 | C7: 988 | D7: 0.9776370473 | F7: 秋田 | G7: 30610 | H7: 234 | I7: 0.7644560601 | K7: 沖縄 | L7: 152563 | M7: 1380 | N7: 0.9045443522 | P7: 大阪 | Q7: 498933 | R7: 1843 | S7: 0.3693882746 | U7: 石川 | V7: 67132 | W7: 996 | X7: 1.483644164 | Z7: 北海道 | AA7: 149060 | AB7: 865 | AC7: 0.5803032336 | AE7: 山形 | AF7: 34809 | AG7: 550 | AH7: 1.580051136 | AJ7: 山形 | AK7: 99016 | AL7: 434 | AM7: 0.4383129999 | AO7: 大分 | AP7: 99576 | AQ7: 1472 | AR7: 1.478267856 | AT7: 佐賀 | AU7: 28736 | AV7: 336 | AW7: 1.169265033
A8: 石川 | B8: 67132 | C8: 659 | D8: 0.9816480963 | F8: 長崎 | G8: 45092 | H8: 356 | I8: 0.7894970283 | K8: 大分 | L8: 99576 | M8: 901 | N8: 0.9048365068 | P8: 山形 | Q8: 64207 | R8: 240 | S8: 0.3737910197 | U8: 兵庫 | V8: 325442 | W8: 4887 | X8: 1.501650064 | Z8: 神奈川 | AA8: 230944 | AB8: 1354 | AC8: 0.5862893169 | AE8: 兵庫 | AF8: 160879 | AG8: 2545 | AH8: 1.581934249 | AJ8: 神奈川 | AK8: 719064 | AL8: 3304 | AM8: 0.459486221 | AO8: 兵庫 | AP8: 486321 | AQ8: 7432 | AR8: 1.528208735 | AT8: 山形 | AU8: 36945 | AV8: 435 | AW8: 1.177425903
A9: 福島 | B9: 119587 | C9: 1188 | D9: 0.9934190171 | F9: 埼玉 | G9: 197933 | H9: 1682 | I9: 0.8497825022 | K9: 秋田 | L9: 84700 | M9: 816 | N9: 0.9634002361 | P9: 新潟 | Q9: 129053 | R9: 488 | S9: 0.3781392141 | U9: 山形 | V9: 64207 | W9: 971 | X9: 1.512296167 | Z9: 埼玉 | AA9: 197933 | AB9: 1194 | AC9: 0.6032344278 | AE9: 沖縄 | AF9: 51503 | AG9: 830 | AH9: 1.611556608 | AJ9: 北海道 | AK9: 427744 | AL9: 2009 | AM9: 0.4696734495 | AO9: 山形 | AP9: 99016 | AQ9: 1521 | AR9: 1.536115375 | AT9: 大分 | AU9: 35617 | AV9: 425 | AW9: 1.193250414
A10: 大分 | B10: 65240 | C10: 667 | D10: 1.022378909 | F10: 山梨 | G10: 27053 | H10: 240 | I10: 0.8871474513 | K10: 福島 | L10: 183269 | M10: 1782 | N10: 0.9723412034 | P10: 長崎 | Q10: 82840 | R10: 326 | S10: 0.3935296958 | U10: 福島 | V10: 119587 | W10: 1829 | X10: 1.529430456 | Z10: 愛媛 | AA10: 39902 | AB10: 245 | AC10: 0.6140043106 | AE10: 東京 | AF10: 311305 | AG10: 5030 | AH10: 1.615778738 | AJ10: 愛媛 | AK10: 119136 | AL10: 569 | AM10: 0.4776054257 | AO10: 沖縄 | AP10: 152563 | AQ10: 2399 | AR10: 1.572465146 | AT10: 鹿児島 | AU10: 60424 | AV10: 734 | AW10: 1.214749106
A11: 群馬 | B11: 117138 | C11: 1216 | D11: 1.038091823 | F11: 香川 | G11: 28173 | H11: 255 | I11: 0.9051219252 | K11: 静岡 | L11: 322271 | M11: 3187 | N11: 0.9889192636 | P11: 高知 | Q11: 39829 | R11: 159 | S11: 0.3992066083 | U11: 群馬 | V11: 117138 | W11: 1806 | X11: 1.541771244 | Z11: 愛知 | AA11: 215509 | AB11: 1349 | AC11: 0.6259599367 | AE11: 熊本 | AF11: 55339 | AG11: 909 | AH11: 1.642602866 | AJ11: 長崎 | AK11: 127932 | AL11: 617 | AM11: 0.4822874652 | AO11: 群馬 | AP11: 176872 | AQ11: 2832 | AR11: 1.601157899 | AT11: 福島 | AU11: 66589 | AV11: 817 | AW11: 1.226929373
A12: 福岡 | B12: 283523 | C12: 2949 | D12: 1.040127256 | F12: 東京 | G12: 311305 | H12: 2883 | I12: 0.9261014118 | K12: 富山 | L12: 91377 | M12: 910 | N12: 0.9958742353 | P12: 神奈川 | Q12: 488120 | R12: 1950 | S12: 0.3994919282 | U12: 沖縄 | V12: 101060 | W12: 1569 | X12: 1.552543044 | Z12: 長崎 | AA12: 45092 | AB12: 291 | AC12: 0.64534729 | AE12: 広島 | AF12: 82711 | AG12: 1364 | AH12: 1.649115595 | AJ12: 新潟 | AK12: 196829 | AL12: 951 | AM12: 0.4831605099 | AO12: 福島 | AP12: 183269 | AQ12: 2962 | AR12: 1.616203504 | AT12: 長崎 | AU12: 47033 | AV12: 605 | AW12: 1.286330874
A13: 福井 | B13: 47472 | C13: 501 | D13: 1.055358948 | F13: 兵庫 | G13: 160879 | H13: 1499 | I13: 0.9317561646 | K13: 福岡 | L13: 427884 | M13: 4334 | N13: 1.012891344 | P13: 愛媛 | Q13: 79234 | R13: 324 | S13: 0.4089153646 | U13: 福岡 | V13: 283523 | W13: 4436 | X13: 1.564599697 | Z13: 兵庫 | AA13: 160879 | AB13: 1046 | AC13: 0.6501780842 | AE13: 宮崎 | AF13: 35888 | AG13: 606 | AH13: 1.688586714 | AJ13: 埼玉 | AK13: 595967 | AL13: 2950 | AM13: 0.4949938503 | AO13: 愛知 | AP13: 654888 | AQ13: 10608 | AR13: 1.619818961 | AT13: 愛媛 | AU13: 39333 | AV13: 516 | AW13: 1.311875524
A14: 秋田 | B14: 54090 | C14: 582 | D14: 1.07598447 | F14: 福島 | G14: 63682 | H14: 594 | I14: 0.9327596495 | K14: 群馬 | L14: 176872 | M14: 1800 | N14: 1.017685106 | P14: 北海道 | Q14: 278684 | R14: 1144 | S14: 0.4105007822 | U14: 愛知 | V14: 439379 | W14: 6955 | X14: 1.582915888 | Z14: 宮城 | AA14: 66506 | AB14: 438 | AC14: 0.6585871951 | AE14: 愛知 | AF14: 215509 | AG14: 3653 | AH14: 1.695056819 | AJ14: 大阪 | AK14: 746905 | AL14: 3817 | AM14: 0.5110422343 | AO14: 福岡 | AP14: 427884 | AQ14: 6967 | AR14: 1.628245038 | AT14: 大阪 | AU14: 236313 | AV14: 3135 | AW14: 1.326630359
A15: 鹿児島 | B15: 96763 | C15: 1060 | D15: 1.095460042 | F15: 鹿児島 | G15: 52687 | H15: 501 | I15: 0.9508987037 | K15: 鹿児島 | L15: 149450 | M15: 1561 | N15: 1.044496487 | P15: 島根 | Q15: 39009 | R15: 170 | S15: 0.4357968674 | U15: 京都 | V15: 140729 | W15: 2304 | X15: 1.637189208 | Z15: 千葉 | AA15: 165018 | AB15: 1102 | AC15: 0.6678059363 | AE15: 秋田 | AF15: 30610 | AG15: 521 | AH15: 1.702058151 | AJ15: 愛知 | AK15: 654888 | AL15: 3463 | AM15: 0.5287927096 | AO15: 熊本 | AP15: 159315 | AQ15: 2620 | AR15: 1.64454069 | AT15: 東京 | AU15: 326869 | AV15: 4362 | AW15: 1.334479562
A16: 愛知 | B16: 439379 | C16: 4841 | D16: 1.101782288 | F16: 福岡 | G16: 144361 | H16: 1385 | I16: 0.9594003921 | K16: 福井 | L16: 72512 | M16: 759 | N16: 1.046723301 | P16: 埼玉 | Q16: 398034 | R16: 1756 | S16: 0.4411683424 | U16: 熊本 | V16: 103976 | W16: 1711 | X16: 1.645572055 | Z16: 新潟 | AA16: 67776 | AB16: 463 | AC16: 0.6831326723 | AE16: 愛媛 | AF16: 39902 | AG16: 685 | AH16: 1.71670593 | AJ16: 宮城 | AK16: 196214 | AL16: 1044 | AM16: 0.5320721253 | AO16: 秋田 | AP16: 84700 | AQ16: 1416 | AR16: 1.671782763 | AT16: 熊本 | AU16: 55619 | AV16: 746 | AW16: 1.341268272
A17: 青森 | B17: 76894 | C17: 852 | D17: 1.108018831 | F17: 和歌山 | G17: 30826 | H17: 300 | I17: 0.9732044378 | K17: 青森 | L17: 119461 | M17: 1276 | N17: 1.068131022 | P17: 大分 | Q17: 65240 | R17: 296 | S17: 0.4537093807 | U17: 秋田 | V17: 54090 | W17: 895 | X17: 1.654649658 | Z17: 東京 | AA17: 311305 | AB17: 2147 | AC17: 0.6896773261 | AE17: 群馬 | AF17: 59734 | AG17: 1026 | AH17: 1.717614759 | AJ17: 千葉 | AK17: 503029 | AL17: 2735 | AM17: 0.5437062277 | AO17: 山梨 | AP17: 76873 | AQ17: 1303 | AR17: 1.695003447 | AT17: 富山 | AU17: 29014 | AV17: 395 | AW17: 1.361411732
A18: 岩手 | B18: 73284 | C18: 824 | D18: 1.124392773 | F18: 群馬 | G18: 59734 | H18: 584 | I18: 0.97766766 | K18: 山梨 | L18: 76873 | M18: 838 | N18: 1.090109661 | P18: 宮城 | Q18: 129708 | R18: 606 | S18: 0.4672032565 | U18: 鹿児島 | V18: 96763 | W18: 1618 | X18: 1.672126743 | Z18: 京都 | AA18: 72024 | AB18: 499 | AC18: 0.692824614 | AE18: 富山 | AF18: 30918 | AG18: 534 | AH18: 1.727149233 | AJ18: 京都 | AK18: 212753 | AL18: 1174 | AM18: 0.5518136054 | AO18: 鹿児島 | AP18: 149450 | AQ18: 2560 | AR18: 1.712947474 | AT18: 埼玉 | AU18: 178549 | AV18: 2436 | AW18: 1.36433136
A19: 富山 | B19: 60459 | C19: 681 | D19: 1.126383169 | F19: 宮崎 | G19: 35888 | H19: 354 | I19: 0.98640214 | K19: 愛知 | L19: 654888 | M19: 7145 | N19: 1.091026252 | P19: 奈良 | Q19: 79588 | R19: 376 | S19: 0.4724330301 | U19: 福井 | V19: 47472 | W19: 795 | X19: 1.674671385 | Z19: 石川 | AA19: 34052 | AB19: 239 | AC19: 0.7018677317 | AE19: 佐賀 | AF19: 27833 | AG19: 481 | AH19: 1.728164409 | AJ19: 計 | AK19: 10663929 | AL19: 60335 | AM19: 0.5657858375 | AO19: 宮崎 | AP19: 102463 | AQ19: 1760 | AR19: 1.717693216 | AT19: 新潟 | AU19: 70368 | AV19: 962 | AW19: 1.367098681
A20: 山形 | B20: 64207 | C20: 731 | D20: 1.138505147 | F20: 青森 | G20: 42567 | H20: 424 | I20: 0.9960767731 | K20: 山形 | L20: 99016 | M20: 1087 | N20: 1.097802375 | P20: 山梨 | Q20: 49820 | R20: 237 | S20: 0.4757125652 | U20: 山梨 | V20: 49820 | W20: 835 | X20: 1.676033721 | Z20: 宮崎 | AA20: 35888 | AB20: 252 | AC20: 0.7021845742 | AE20: 山梨 | AF20: 27053 | AG20: 468 | AH20: 1.72993753 | AJ20: 佐賀 | AK20: 80215 | AL20: 456 | AM20: 0.5684722309 | AO20: 京都 | AP20: 212753 | AQ20: 3667 | AR20: 1.723594967 | AT20: 茨城 | AU20: 94107 | AV20: 1287 | AW20: 1.367592209
A21: 京都 | B21: 140729 | C21: 1629 | D21: 1.157543932 | F21: 佐賀 | G21: 27833 | H21: 283 | I21: 1.016778644 | K21: 宮崎 | L21: 102463 | M21: 1135 | N21: 1.107716932 | P21: 京都 | Q21: 140729 | R21: 675 | S21: 0.4796452757 | U21: 岩手 | V21: 73284 | W21: 1232 | X21: 1.681130943 | Z21: 佐賀 | AA21: 27833 | AB21: 198 | AC21: 0.7113857651 | AE21: 福岡 | AF21: 144361 | AG21: 2531 | AH21: 1.753243605 | AJ21: 石川 | AK21: 101184 | AL21: 576 | AM21: 0.569259962 | AO21: 佐賀 | AP21: 80215 | AQ21: 1384 | AR21: 1.725363087 | AT21: 静岡 | AU21: 103985 | AV21: 1435 | AW21: 1.380006732
A22: 宮崎 | B22: 66575 | C22: 781 | D22: 1.17311303 | F22: 山形 | G22: 34809 | H22: 356 | I22: 1.022724008 | K22: 岩手 | L22: 112675 | M22: 1251 | N22: 1.110272909 | P22: 愛知 | Q22: 439379 | R22: 2114 | S22: 0.4811335999 | U22: 静岡 | V22: 213771 | W22: 3607 | X22: 1.687319608 | Z22: 計 | AA22: 3600323 | AB22: 26081 | AC22: 0.7244072268 | AE22: 福島 | AF22: 63682 | AG22: 1133 | AH22: 1.779152665 | AJ22: 大分 | AK22: 99576 | AL22: 571 | AM22: 0.5734313489 | AO22: 愛媛 | AP22: 119136 | AQ22: 2057 | AR22: 1.726598174 | AT22: 京都 | AU22: 71665 | AV22: 989 | AW22: 1.380032094
A23: 山梨 | B23: 49820 | C23: 598 | D23: 1.200321156 | F23: 静岡 | G23: 108500 | H23: 1110 | I23: 1.023041475 | K23: 兵庫 | L23: 486321 | M23: 5411 | N23: 1.112639594 | P23: 山口 | Q23: 78320 | R23: 377 | S23: 0.4813585291 | U23: 佐賀 | V23: 52382 | W23: 903 | X23: 1.723874613 | Z23: 群馬 | AA23: 59734 | AB23: 442 | AC23: 0.7399470988 | AE23: 鹿児島 | AF23: 52687 | AG23: 942 | AH23: 1.787917323 | AJ23: 奈良 | AK23: 121466 | AL23: 702 | AM23: 0.5779395057 | AO23: 福井 | AP23: 72512 | AQ23: 1254 | AR23: 1.729368932 | AT23: 岡山 | AU23: 56304 | AV23: 786 | AW23: 1.39599318
A24: 兵庫 | B24: 325442 | C24: 3912 | D24: 1.202057509 | F24: 福井 | G24: 25040 | H24: 258 | I24: 1.030351438 | K24: 佐賀 | L24: 80215 | M24: 928 | N24: 1.156890856 | P24: 千葉 | Q24: 338011 | R24: 1633 | S24: 0.4831203718 | U24: 愛媛 | V24: 79234 | W24: 1372 | X24: 1.731579877 | Z24: 岐阜 | AA24: 62816 | AB24: 467 | AC24: 0.7434411615 | AE24: 千葉 | AF24: 165018 | AG24: 3002 | AH24: 1.819195482 | AJ24: 島根 | AK24: 59753 | AL24: 346 | AM24: 0.5790504242 | AO24: 静岡 | AP24: 322271 | AQ24: 5604 | AR24: 1.738909179 | AT24: 福岡 | AU24: 137504 | AV24: 1928 | AW24: 1.402141029
A25: 佐賀 | B25: 52382 | C25: 645 | D25: 1.23133901 | F25: 愛知 | G25: 215509 | H25: 2304 | I25: 1.069096882 | K25: 京都 | L25: 212753 | M25: 2493 | N25: 1.171781361 | P25: 香川 | Q25: 57458 | R25: 278 | S25: 0.4838316683 | U25: 宮崎 | V25: 66575 | W25: 1154 | X25: 1.733383402 | Z25: 岡山 | AA25: 56989 | AB25: 443 | AC25: 0.777342996 | AE25: 福井 | AF25: 25040 | AG25: 459 | AH25: 1.833067093 | AJ25: 群馬 | AK25: 176872 | AL25: 1032 | AM25: 0.5834727939 | AO25: 広島 | AP25: 244430 | AQ25: 4255 | AR25: 1.740784683 | AT25: 青森 | AU25: 43519 | AV25: 617 | AW25: 1.417771548
A26: 千葉 | B26: 338011 | C26: 4287 | D26: 1.268301919 | F26: 岩手 | G26: 39391 | H26: 427 | I26: 1.08400396 | K26: 和歌山 | L26: 87718 | M26: 1047 | N26: 1.193597665 | P26: 計 | Q26: 7063606 | R26: 34254 | S26: 0.4849364475 | U26: 宮城 | V26: 129708 | W26: 2258 | X26: 1.740833256 | Z26: 奈良 | AA26: 41878 | AB26: 326 | AC26: 0.778451693 | AE26: 三重 | AF26: 54707 | AG26: 1005 | AH26: 1.837059243 | AJ26: 岐阜 | AK26: 186593 | AL26: 1105 | AM26: 0.5921979924 | AO26: 富山 | AP26: 91377 | AQ26: 1606 | AR26: 1.75755387 | AT26: 計 | AU26: 3524973 | AV26: 50000 | AW26: 1.418450581
A27: 宮城 | B27: 129708 | C27: 1652 | D27: 1.27363 | F27: 愛媛 | G27: 39902 | H27: 440 | I27: 1.102701619 | K27: 熊本 | L27: 159315 | M27: 1959 | N27: 1.229639394 | P27: 佐賀 | Q27: 52382 | R27: 258 | S27: 0.4925356038 | U27: 千葉 | V27: 338011 | W27: 5920 | X27: 1.751422291 | Z27: 福岡 | AA27: 144361 | AB27: 1146 | AC27: 0.7938432125 | AE27: 宮城 | AF27: 66506 | AG27: 1222 | AH27: 1.837428202 | AJ27: 山口 | AK27: 118375 | AL27: 705 | AM27: 0.5955649419 | AO27: 宮城 | AP27: 196214 | AQ27: 3480 | AR27: 1.773573751 | AT27: 宮崎 | AU27: 37459 | AV27: 536 | AW27: 1.430897782
A28: 熊本 | B28: 103976 | C28: 1336 | D28: 1.284911903 | F28: 熊本 | G28: 55339 | H28: 623 | I28: 1.125788323 | K28: 千葉 | L28: 503029 | M28: 6187 | N28: 1.229948969 | P28: 石川 | Q28: 67132 | R28: 337 | S28: 0.5019960674 | U28: 富山 | V28: 60459 | W28: 1072 | X28: 1.773102433 | Z28: 大阪 | AA28: 247972 | AB28: 1974 | AC28: 0.7960576194 | AE28: 静岡 | AF28: 108500 | AG28: 1997 | AH28: 1.840552995 | AJ28: 高知 | AK28: 61239 | AL28: 366 | AM28: 0.597658355 | AO28: 千葉 | AP28: 503029 | AQ28: 8922 | AR28: 1.773655197 | AT28: 愛知 | AU28: 194476 | AV28: 2824 | AW28: 1.452107201
A29: 和歌山 | B29: 56892 | C29: 747 | D29: 1.313014132 | F29: 広島 | G29: 82711 | H29: 941 | I29: 1.137696316 | K29: 宮城 | L29: 196214 | M29: 2436 | N29: 1.241501626 | P29: 群馬 | Q29: 117138 | R29: 590 | S29: 0.5036794209 | U29: 広島 | V29: 161719 | W29: 2891 | X29: 1.787668734 | Z29: 大分 | AA29: 34336 | AB29: 275 | AC29: 0.8009086673 | AE29: 神奈川 | AF29: 230944 | AG29: 4315 | AH29: 1.868418318 | AJ29: 岡山 | AK29: 169279 | AL29: 1021 | AM29: 0.6031462851 | AO29: 岩手 | AP29: 112675 | AQ29: 2003 | AR29: 1.777679166 | AT29: 群馬 | AU29: 56340 | AV29: 828 | AW29: 1.469648562
A30: 愛媛 | B30: 79234 | C30: 1048 | D30: 1.322664513 | F30: 千葉 | G30: 165018 | H30: 1900 | I30: 1.151389545 | K30: 愛媛 | L30: 119136 | M30: 1488 | N30: 1.248992748 | P30: 岡山 | Q30: 112290 | R30: 578 | S30: 0.5147386232 | U30: 神奈川 | V30: 488120 | W30: 8822 | X30: 1.807342457 | Z30: 福井 | AA30: 25040 | AB30: 201 | AC30: 0.802715655 | AE30: 計 | AF30: 3600323 | AG30: 67759 | AH30: 1.882025585 | AJ30: 山梨 | AK30: 76873 | AL30: 465 | AM30: 0.6048937859 | AO30: 神奈川 | AP30: 719064 | AQ30: 13137 | AR30: 1.826958379 | AT30: 千葉 | AU30: 150543 | AV30: 2216 | AW30: 1.472004676
A31: 計 | B31: 7063606 | C31: 93488 | D31: 1.323516629 | F31: 計 | G31: 3600323 | H31: 41678 | I31: 1.157618358 | K31: 計 | L31: 10663929 | M31: 135166 | N31: 1.267506563 | P31: 岐阜 | Q31: 123777 | R31: 638 | S31: 0.5154430952 | U31: 計 | V31: 7063606 | W31: 127742 | X31: 1.808453076 | Z31: 静岡 | AA31: 108500 | AB31: 887 | AC31: 0.8175115207 | AE31: 香川 | AF31: 28173 | AG31: 532 | AH31: 1.888332801 | AJ31: 宮崎 | AK31: 102463 | AL31: 625 | AM31: 0.6099762841 | AO31: 計 | AP31: 10663929 | AQ31: 195501 | AR31: 1.833292401 | AT31: 兵庫 | AU31: 146689 | AV31: 2170 | AW31: 1.479320194
A32: 岐阜 | B32: 123777 | C32: 1691 | D32: 1.366166574 | F32: 高知 | G32: 21410 | H32: 252 | I32: 1.177020084 | K32: 岐阜 | L32: 186593 | M32: 2456 | N32: 1.316233728 | P32: 福岡 | Q32: 283523 | R32: 1487 | S32: 0.5244724414 | U32: 青森 | V32: 76894 | W32: 1414 | X32: 1.838895102 | Z32: 山口 | AA32: 40055 | AB32: 328 | AC32: 0.8188740482 | AE32: 京都 | AF32: 72024 | AG32: 1363 | AH32: 1.892424747 | AJ32: 東京 | AK32: 905631 | AL32: 5529 | AM32: 0.6105135535 | AO32: 三重 | AP32: 162537 | AQ32: 3060 | AR32: 1.882648259 | AT32: 香川 | AU32: 26382 | AV32: 392 | AW32: 1.485861572
A33: 神奈川 | B33: 488120 | C33: 6872 | D33: 1.407850529 | F33: 宮城 | G33: 66506 | H33: 784 | I33: 1.178841007 | K33: 広島 | L33: 244430 | M33: 3303 | N33: 1.351307123 | P33: 福島 | Q33: 119587 | R33: 641 | S33: 0.5360114394 | U33: 岐阜 | V33: 123777 | W33: 2329 | X33: 1.881609669 | Z33: 鹿児島 | AA33: 52687 | AB33: 441 | AC33: 0.8370186194 | AE33: 岩手 | AF33: 39391 | AG33: 771 | AH33: 1.957299891 | AJ33: 福岡 | AK33: 427884 | AL33: 2633 | AM33: 0.615353694 | AO33: 青森 | AP33: 119461 | AQ33: 2256 | AR33: 1.888482434 | AT33: 奈良 | AU33: 38728 | AV33: 578 | AW33: 1.492460235
A34: 広島 | B34: 161719 | C34: 2362 | D34: 1.460558129 | F34: 京都 | G34: 72024 | H34: 864 | I34: 1.199600133 | K34: 神奈川 | L34: 719064 | M34: 9833 | N34: 1.367472158 | P34: 岩手 | Q34: 73284 | R34: 408 | S34: 0.5567381693 | U34: 三重 | V34: 107830 | W34: 2055 | X34: 1.905777613 | Z34: 山梨 | AA34: 27053 | AB34: 228 | AC34: 0.8427900787 | AE34: 岐阜 | AF34: 62816 | AG34: 1232 | AH34: 1.961283749 | AJ34: 福島 | AK34: 183269 | AL34: 1180 | AM34: 0.6438623008 | AO34: 岐阜 | AP34: 186593 | AQ34: 3561 | AR34: 1.90843172 | AT34: 宮城 | AU34: 66038 | AV34: 993 | AW34: 1.5036797
A35: 山口 | B35: 78320 | C35: 1152 | D35: 1.470888662 | F35: 岐阜 | G35: 62816 | H35: 765 | I35: 1.217842588 | K35: 香川 | L35: 85631 | M35: 1189 | N35: 1.388515841 | P35: 宮崎 | Q35: 66575 | R35: 373 | S35: 0.5602703718 | U35: 山口 | V35: 78320 | W35: 1529 | X35: 1.952247191 | Z35: 福島 | AA35: 63682 | AB35: 539 | AC35: 0.8463930153 | AE35: 青森 | AF35: 42567 | AG35: 842 | AH35: 1.97805812 | AJ35: 香川 | AK35: 85631 | AL35: 555 | AM35: 0.6481297661 | AO35: 山口 | AP35: 118375 | AQ35: 2367 | AR35: 1.999577614 | AT35: 徳島 | AU35: 22123 | AV35: 336 | AW35: 1.518781359
A36: 栃木 | B36: 113232 | C36: 1701 | D36: 1.502225519 | F36: 山口 | G36: 40055 | H36: 510 | I36: 1.273249282 | K36: 山口 | L36: 118375 | M36: 1662 | N36: 1.404012672 | P36: 東京 | Q36: 594326 | R36: 3382 | S36: 0.5690479636 | U36: 島根 | V36: 39009 | W36: 770 | X36: 1.973903458 | Z36: 島根 | AA36: 20744 | AB36: 176 | AC36: 0.8484381026 | AE36: 和歌山 | AF36: 30826 | AG36: 611 | AH36: 1.982093038 | AJ36: 岩手 | AK36: 112675 | AL36: 752 | AM36: 0.6674062569 | AO36: 香川 | AP36: 85631 | AQ36: 1744 | AR36: 2.036645607 | AT36: 和歌山 | AU36: 32039 | AV36: 491 | AW36: 1.532507257
A37: 島根 | B37: 39009 | C37: 600 | D37: 1.538106591 | F37: 神奈川 | G37: 230944 | H37: 2961 | I37: 1.282129001 | K37: 栃木 | L37: 171199 | M37: 2558 | N37: 1.494167606 | P37: 長野 | Q37: 125832 | R37: 723 | S37: 0.5745756246 | U37: 和歌山 | V37: 56892 | W37: 1179 | X37: 2.072347606 | Z37: 沖縄 | AA37: 51503 | AB37: 438 | AC37: 0.8504358969 | AE37: 奈良 | AF37: 41878 | AG37: 870 | AH37: 2.077463107 | AJ37: 沖縄 | AK37: 152563 | AL37: 1019 | AM37: 0.6679207934 | AO37: 和歌山 | AP37: 87718 | AQ37: 1790 | AR37: 2.040630201 | AT37: 沖縄 | AU37: 52256 | AV37: 802 | AW37: 1.53475199
A38: 三重 | B38: 107830 | C38: 1728 | D38: 1.602522489 | F38: 三重 | G38: 54707 | H38: 705 | I38: 1.288683349 | K38: 三重 | L38: 162537 | M38: 2433 | N38: 1.496889939 | P38: 沖縄 | Q38: 101060 | R38: 581 | S38: 0.5749059964 | U38: 高知 | V38: 39829 | W38: 832 | X38: 2.088930177 | Z38: 岩手 | AA38: 39391 | AB38: 344 | AC38: 0.8732959305 | AE38: 山口 | AF38: 40055 | AG38: 838 | AH38: 2.09212333 | AJ38: 鹿児島 | AK38: 149450 | AL38: 999 | AM38: 0.668450987 | AO38: 高知 | AP38: 61239 | AQ38: 1291 | AR38: 2.108133706 | AT38: 北海道 | AU38: 164749 | AV38: 2533 | AW38: 1.537490364
A39: 香川 | B39: 57458 | C39: 934 | D39: 1.625535174 | F39: 奈良 | G39: 41878 | H39: 544 | I39: 1.299011414 | K39: 高知 | L39: 61239 | M39: 925 | N39: 1.510475351 | P39: 鹿児島 | Q39: 96763 | R39: 558 | S39: 0.5766667011 | U39: 香川 | V39: 57458 | W39: 1212 | X39: 2.109366842 | Z39: 長野 | AA39: 64918 | AB39: 581 | AC39: 0.8949751995 | AE39: 高知 | AF39: 21410 | AG39: 459 | AH39: 2.14385801 | AJ39: 福井 | AK39: 72512 | AL39: 495 | AM39: 0.6826456311 | AO39: 島根 | AP39: 59753 | AQ39: 1325 | AR39: 2.217461885 | AT39: 長野 | AU39: 65497 | AV39: 1008 | AW39: 1.539001786
A40: 高知 | B40: 39829 | C40: 673 | D40: 1.689723568 | F40: 滋賀 | G40: 42412 | H40: 582 | I40: 1.372253136 | K40: 島根 | L40: 59753 | M40: 979 | N40: 1.638411461 | P40: 徳島 | Q40: 42041 | R40: 243 | S40: 0.5780071835 | U40: 栃木 | V40: 113232 | W40: 2476 | X40: 2.186661015 | Z40: 栃木 | AA40: 57967 | AB40: 520 | AC40: 0.8970621216 | AE40: 新潟 | AF40: 67776 | AG40: 1484 | AH40: 2.189565628 | AJ40: 長野 | AK40: 190750 | AL40: 1304 | AM40: 0.6836173001 | AO40: 新潟 | AP40: 196829 | AQ40: 4370 | AR40: 2.220201291 | AT40: 高知 | AU40: 22015 | AV40: 346 | AW40: 1.571655689
A41: 長野 | B41: 125832 | C41: 2197 | D41: 1.745978765 | F41: 大阪 | G41: 247972 | H41: 3619 | I41: 1.459438969 | K41: 奈良 | L41: 121466 | M41: 2059 | N41: 1.695124562 | P41: 秋田 | Q41: 54090 | R41: 313 | S41: 0.5786651877 | U41: 新潟 | V41: 129053 | W41: 2886 | X41: 2.236290516 | Z41: 徳島 | AA41: 22010 | AB41: 205 | AC41: 0.9313948205 | AE41: 北海道 | AF41: 149060 | AG41: 3280 | AH41: 2.200456192 | AJ41: 徳島 | AK41: 64051 | AL41: 448 | AM41: 0.6994426317 | AO41: 北海道 | AP41: 427744 | AQ41: 9542 | AR41: 2.230773547 | AT41: 秋田 | AU41: 30849 | AV41: 485 | AW41: 1.572174139
A42: 北海道 | B42: 278684 | C42: 5118 | D42: 1.836488639 | F42: 栃木 | G42: 57967 | H42: 857 | I42: 1.478427381 | K42: 新潟 | L42: 196829 | M42: 3419 | N42: 1.737040782 | P42: 鳥取 | Q42: 32762 | R42: 192 | S42: 0.586044808 | U42: 北海道 | V42: 278684 | W42: 6262 | X42: 2.246989422 | Z42: 秋田 | AA42: 30610 | AB42: 287 | AC42: 0.9376020908 | AE42: 大阪 | AF42: 247972 | AG42: 5593 | AH42: 2.255496588 | AJ42: 秋田 | AK42: 84700 | AL42: 600 | AM42: 0.7083825266 | AO42: 栃木 | AP42: 171199 | AQ42: 3853 | AR42: 2.250597258 | AT42: 岩手 | AU42: 42008 | AV42: 662 | AW42: 1.575890307
A43: 新潟 | B43: 129053 | C43: 2398 | D43: 1.858151302 | F43: 新潟 | G43: 67776 | H43: 1021 | I43: 1.506432956 | K43: 滋賀 | L43: 129670 | M43: 2275 | N43: 1.754453613 | P43: 福井 | Q43: 47472 | R43: 294 | S43: 0.6193124368 | U43: 長野 | V43: 125832 | W43: 2920 | X43: 2.32055439 | Z43: 滋賀 | AA43: 42412 | AB43: 399 | AC43: 0.9407714798 | AE43: 滋賀 | AF43: 42412 | AG43: 981 | AH43: 2.313024616 | AJ43: 滋賀 | AK43: 129670 | AL43: 952 | AM43: 0.7341713581 | AO43: 奈良 | AP43: 121466 | AQ43: 2761 | AR43: 2.273064067 | AT43: 栃木 | AU43: 59109 | AV43: 940 | AW43: 1.59028236
A44: 鳥取 | B44: 32762 | C44: 611 | D44: 1.864965509 | F44: 鳥取 | G44: 17344 | H44: 269 | I44: 1.550968635 | K44: 鳥取 | L44: 50106 | M44: 880 | N44: 1.756276693 | P44: 滋賀 | Q44: 87258 | R44: 553 | S44: 0.6337527791 | U44: 奈良 | V44: 79588 | W44: 1891 | X44: 2.37598633 | Z44: 茨城 | AA44: 87140 | AB44: 822 | AC44: 0.9433096167 | AE44: 岡山 | AF44: 56989 | AG44: 1327 | AH44: 2.328519539 | AJ44: 静岡 | AK44: 322271 | AL44: 2417 | AM44: 0.7499899153 | AO44: 大阪 | AP44: 746905 | AQ44: 17876 | AR44: 2.393343196 | AT44: 福井 | AU44: 24523 | AV44: 390 | AW44: 1.590343759
A45: 茨城 | B45: 169903 | C45: 3177 | D45: 1.869890467 | F45: 岡山 | G45: 56989 | H45: 884 | I45: 1.551176543 | K45: 北海道 | L45: 427744 | M45: 7533 | N45: 1.761100097 | P45: 富山 | Q45: 60459 | R45: 391 | S45: 0.6467192643 | U45: 鳥取 | V45: 32762 | W45: 803 | X45: 2.451010317 | Z45: 高知 | AA45: 21410 | AB45: 207 | AC45: 0.9668379262 | AE45: 栃木 | AF45: 57967 | AG45: 1377 | AH45: 2.375489503 | AJ45: 栃木 | AK45: 171199 | AL45: 1295 | AM45: 0.756429652 | AO45: 滋賀 | AP45: 129670 | AQ45: 3227 | AR45: 2.488624971 | AT45: 神奈川 | AU45: 199491 | AV45: 3186 | AW45: 1.597064529
A46: 奈良 | B46: 79588 | C46: 1515 | D46: 1.903553299 | F46: 北海道 | G46: 149060 | H46: 2415 | I46: 1.620152959 | K46: 茨城 | L46: 257043 | M46: 4645 | N46: 1.807090642 | P46: 栃木 | Q46: 113232 | R46: 775 | S46: 0.6844354953 | U46: 大阪 | V46: 498933 | W46: 12283 | X46: 2.461853596 | Z46: 青森 | AA46: 42567 | AB46: 418 | AC46: 0.9819813471 | AE46: 徳島 | AF46: 22010 | AG46: 569 | AH46: 2.585188551 | AJ46: 富山 | AK46: 91377 | AL46: 696 | AM46: 0.7616796349 | AO46: 岡山 | AP46: 169279 | AQ46: 4245 | AR46: 2.507694398 | AT46: 岐阜 | AU46: 57932 | AV46: 957 | AW46: 1.651936753
A47: 滋賀 | B47: 87258 | C47: 1693 | D47: 1.940223246 | F47: 徳島 | G47: 22010 | H47: 364 | I47: 1.65379373 | K47: 大阪 | L47: 746905 | M47: 14059 | N47: 1.882300962 | P47: 静岡 | Q47: 213771 | R47: 1530 | S47: 0.7157191574 | U47: 滋賀 | V47: 87258 | W47: 2246 | X47: 2.573976025 | Z47: 香川 | AA47: 28173 | AB47: 277 | AC47: 0.9832108757 | AE47: 茨城 | AF47: 87140 | AG47: 2290 | AH47: 2.627955015 | AJ47: 茨城 | AK47: 257043 | AL47: 2039 | AM47: 0.7932524908 | AO47: 鳥取 | AP47: 50106 | AQ47: 1281 | AR47: 2.55658005 | AT47: 滋賀 | AU47: 39965 | AV47: 663 | AW47: 1.658951583
A48: 岡山 | B48: 112290 | C48: 2340 | D48: 2.083889928 | F48: 茨城 | G48: 87140 | H48: 1468 | I48: 1.684645398 | K48: 長野 | L48: 190750 | M48: 3614 | N48: 1.894626474 | P48: 茨城 | Q48: 169903 | R48: 1217 | S48: 0.7162910602 | U48: 茨城 | V48: 169903 | W48: 4394 | X48: 2.586181527 | Z48: 富山 | AA48: 30918 | AB48: 305 | AC48: 0.9864803674 | AE48: 島根 | AF48: 20744 | AG48: 555 | AH48: 2.675472426 | AJ48: 鳥取 | AK48: 50106 | AL48: 401 | AM48: 0.8003033569 | AO48: 長野 | AP48: 190750 | AQ48: 4918 | AR48: 2.578243775 | AT48: 山口 | AU48: 38769 | AV48: 671 | AW48: 1.73076427
A49: 大阪 | B49: 498933 | C49: 10440 | D49: 2.092465321 | F49: 島根 | G49: 20744 | H49: 379 | I49: 1.827034323 | K49: 岡山 | L49: 169279 | M49: 3224 | N49: 1.904548113 | P49: 青森 | Q49: 76894 | R49: 562 | S49: 0.7308762712 | U49: 岡山 | V49: 112290 | W49: 2918 | X49: 2.598628551 | Z49: 和歌山 | AA49: 30826 | AB49: 311 | AC49: 1.008888601 | AE49: 鳥取 | AF49: 17344 | AG49: 478 | AH49: 2.75599631 | AJ49: 青森 | AK49: 119461 | AL49: 980 | AM49: 0.8203514118 | AO49: 茨城 | AP49: 257043 | AQ49: 6684 | AR49: 2.600343133 | AT49: 鳥取 | AU49: 17370 | AV49: 319 | AW49: 1.836499712
A50: 徳島 | B50: 42041 | C50: 1027 | D50: 2.442853405 | F50: 長野 | G50: 64918 | H50: 1417 | I50: 2.182753628 | K50: 徳島 | L50: 64051 | M50: 1391 | N50: 2.171706921 | P50: 和歌山 | Q50: 56892 | R50: 432 | S50: 0.759333474 | U50: 徳島 | V50: 42041 | W50: 1270 | X50: 3.020860588 | Z50: 鳥取 | AA50: 17344 | AB50: 209 | AC50: 1.205027675 | AE50: 長野 | AF50: 64918 | AG50: 1998 | AH50: 3.077728827 | AJ50: 和歌山 | AK50: 87718 | AL50: 743 | AM50: 0.8470325361 | AO50: 徳島 | AP50: 64051 | AQ50: 1839 | AR50: 2.871149553 | AT50: 島根 | AU50: 22359 | AV50: 501 | AW50: 2.24070844

Sheet 順％
C2: 09小級％ | F2: 09中級％ | I2: 09小中級％ | L2: 09小養％ | O2: 09小級養％ | R2: 09中養％ | U2: 09中級養％ | X2: 09小中養％ | AA2: 09小中障全％ | AD2: 09高養％
A3: 1 | C3: 徳島 | D3: 2.442853405 | F3: 長野 | G3: 2.182753628 | I3: 徳島 | J3: 2.171706921 | L3: 和歌山 | M3: 0.759333474 | O3: 徳島 | P3: 3.020860588 | R3: 鳥取 | S3: 1.205027675 | U3: 長野 | V3: 3.077728827 | X3: 和歌山 | Y3: 0.8470325361 | AA3: 徳島 | AB3: 2.871149553 | AD3: 島根 | AE3: 2.24070844
A4: 2 | C4: 大阪 | D4: 2.092465321 | F4: 島根 | G4: 1.827034323 | I4: 岡山 | J4: 1.904548113 | L4: 青森 | M4: 0.7308762712 | O4: 岡山 | P4: 2.598628551 | R4: 和歌山 | S4: 1.008888601 | U4: 鳥取 | V4: 2.75599631 | X4: 青森 | Y4: 0.8203514118 | AA4: 茨城 | AB4: 2.600343133 | AD4: 鳥取 | AE4: 1.836499712
A5: 3 | C5: 岡山 | D5: 2.083889928 | F5: 茨城 | G5: 1.684645398 | I5: 長野 | J5: 1.894626474 | L5: 茨城 | M5: 0.7162910602 | O5: 茨城 | P5: 2.586181527 | R5: 富山 | S5: 0.9864803674 | U5: 島根 | V5: 2.675472426 | X5: 鳥取 | Y5: 0.8003033569 | AA5: 長野 | AB5: 2.578243775 | AD5: 山口 | AE5: 1.73076427
A6: 4 | C6: 滋賀 | D6: 1.940223246 | F6: 徳島 | G6: 1.65379373 | I6: 大阪 | J6: 1.882300962 | L6: 静岡 | M6: 0.7157191574 | O6: 滋賀 | P6: 2.573976025 | R6: 香川 | S6: 0.9832108757 | U6: 茨城 | V6: 2.627955015 | X6: 茨城 | Y6: 0.7932524908 | AA6: 鳥取 | AB6: 2.55658005 | AD6: 滋賀 | AE6: 1.658951583
A7: 5 | C7: 奈良 | D7: 1.903553299 | F7: 北海道 | G7: 1.620152959 | I7: 茨城 | J7: 1.807090642 | L7: 栃木 | M7: 0.6844354953 | O7: 大阪 | P7: 2.461853596 | R7: 青森 | S7: 0.9819813471 | U7: 徳島 | V7: 2.585188551 | X7: 富山 | Y7: 0.7616796349 | AA7: 岡山 | AB7: 2.507694398 | AD7: 岐阜 | AE7: 1.651936753
A8: 6 | C8: 茨城 | D8: 1.869890467 | F8: 岡山 | G8: 1.551176543 | I8: 北海道 | J8: 1.761100097 | L8: 富山 | M8: 0.6467192643 | O8: 鳥取 | P8: 2.451010317 | R8: 高知 | S8: 0.9668379262 | U8: 栃木 | V8: 2.375489503 | X8: 栃木 | Y8: 0.756429652 | AA8: 滋賀 | AB8: 2.488624971 | AD8: 神奈川 | AE8: 1.597064529
A9: 7 | C9: 鳥取 | D9: 1.864965509 | F9: 鳥取 | G9: 1.550968635 | I9: 鳥取 | J9: 1.756276693 | L9: 滋賀 | M9: 0.6337527791 | O9: 奈良 | P9: 2.37598633 | R9: 茨城 | S9: 0.9433096167 | U9: 岡山 | V9: 2.328519539 | X9: 静岡 | Y9: 0.7499899153 | AA9: 大阪 | AB9: 2.393343196 | AD9: 福井 | AE9: 1.590343759
A10: 8 | C10: 新潟 | D10: 1.858151302 | F10: 新潟 | G10: 1.506432956 | I10: 滋賀 | J10: 1.754453613 | L10: 福井 | M10: 0.6193124368 | O10: 長野 | P10: 2.32055439 | R10: 滋賀 | S10: 0.9407714798 | U10: 滋賀 | V10: 2.313024616 | X10: 滋賀 | Y10: 0.7341713581 | AA10: 奈良 | AB10: 2.273064067 | AD10: 栃木 | AE10: 1.59028236
A11: 9 | C11: 北海道 | D11: 1.836488639 | F11: 栃木 | G11: 1.478427381 | I11: 新潟 | J11: 1.737040782 | L11: 鳥取 | M11: 0.586044808 | O11: 北海道 | P11: 2.246989422 | R11: 秋田 | S11: 0.9376020908 | U11: 大阪 | V11: 2.255496588 | X11: 秋田 | Y11: 0.7083825266 | AA11: 栃木 | AB11: 2.250597258 | AD11: 岩手 | AE11: 1.575890307
A12: 10 | C12: 長野 | D12: 1.745978765 | F12: 大阪 | G12: 1.459438969 | I12: 奈良 | J12: 1.695124562 | L12: 秋田 | M12: 0.5786651877 | O12: 新潟 | P12: 2.236290516 | R12: 徳島 | S12: 0.9313948205 | U12: 北海道 | V12: 2.200456192 | X12: 徳島 | Y12: 0.6994426317 | AA12: 北海道 | AB12: 2.230773547 | AD12: 秋田 | AE12: 1.572174139
A13: 11 | C13: 高知 | D13: 1.689723568 | F13: 滋賀 | G13: 1.372253136 | I13: 島根 | J13: 1.638411461 | L13: 徳島 | M13: 0.5780071835 | O13: 栃木 | P13: 2.186661015 | R13: 栃木 | S13: 0.8970621216 | U13: 新潟 | V13: 2.189565628 | X13: 長野 | Y13: 0.6836173001 | AA13: 新潟 | AB13: 2.220201291 | AD13: 高知 | AE13: 1.571655689
A14: 12 | C14: 香川 | D14: 1.625535174 | F14: 奈良 | G14: 1.299011414 | I14: 高知 | J14: 1.510475351 | L14: 鹿児島 | M14: 0.5766667011 | O14: 香川 | P14: 2.109366842 | R14: 長野 | S14: 0.8949751995 | U14: 高知 | V14: 2.14385801 | X14: 福井 | Y14: 0.6826456311 | AA14: 島根 | AB14: 2.217461885 | AD14: 長野 | AE14: 1.539001786
A15: 13 | C15: 三重 | D15: 1.602522489 | F15: 三重 | G15: 1.288683349 | I15: 三重 | J15: 1.496889939 | L15: 沖縄 | M15: 0.5749059964 | O15: 高知 | P15: 2.088930177 | R15: 岩手 | S15: 0.8732959305 | U15: 山口 | V15: 2.09212333 | X15: 鹿児島 | Y15: 0.668450987 | AA15: 高知 | AB15: 2.108133706 | AD15: 北海道 | AE15: 1.537490364
A16: 14 | C16: 島根 | D16: 1.538106591 | F16: 神奈川 | G16: 1.282129001 | I16: 栃木 | J16: 1.494167606 | L16: 長野 | M16: 0.5745756246 | O16: 和歌山 | P16: 2.072347606 | R16: 沖縄 | S16: 0.8504358969 | U16: 奈良 | V16: 2.077463107 | X16: 沖縄 | Y16: 0.6679207934 | AA16: 和歌山 | AB16: 2.040630201 | AD16: 沖縄 | AE16: 1.53475199
A17: 15 | C17: 栃木 | D17: 1.502225519 | F17: 山口 | G17: 1.273249282 | I17: 山口 | J17: 1.404012672 | L17: 東京 | M17: 0.5690479636 | O17: 島根 | P17: 1.973903458 | R17: 島根 | S17: 0.8484381026 | U17: 和歌山 | V17: 1.982093038 | X17: 岩手 | Y17: 0.6674062569 | AA17: 香川 | AB17: 2.036645607 | AD17: 和歌山 | AE17: 1.532507257
A18: 16 | C18: 山口 | D18: 1.470888662 | F18: 岐阜 | G18: 1.217842588 | I18: 香川 | J18: 1.388515841 | L18: 宮崎 | M18: 0.5602703718 | O18: 山口 | P18: 1.952247191 | R18: 福島 | S18: 0.8463930153 | U18: 青森 | V18: 1.97805812 | X18: 香川 | Y18: 0.6481297661 | AA18: 山口 | AB18: 1.999577614 | AD18: 徳島 | AE18: 1.518781359
A19: 17 | C19: 広島 | D19: 1.460558129 | F19: 京都 | G19: 1.199600133 | I19: 神奈川 | J19: 1.367472158 | L19: 岩手 | M19: 0.5567381693 | O19: 三重 | P19: 1.905777613 | R19: 山梨 | S19: 0.8427900787 | U19: 岐阜 | V19: 1.961283749 | X19: 福島 | Y19: 0.6438623008 | AA19: 岐阜 | AB19: 1.90843172 | AD19: 宮城 | AE19: 1.5036797
A20: 18 | C20: 神奈川 | D20: 1.407850529 | F20: 宮城 | G20: 1.178841007 | I20: 広島 | J20: 1.351307123 | L20: 福島 | M20: 0.5360114394 | O20: 岐阜 | P20: 1.881609669 | R20: 鹿児島 | S20: 0.8370186194 | U20: 岩手 | V20: 1.957299891 | X20: 福岡 | Y20: 0.615353694 | AA20: 青森 | AB20: 1.888482434 | AD20: 奈良 | AE20: 1.492460235
A21: 19 | C21: 岐阜 | D21: 1.366166574 | F21: 高知 | G21: 1.177020084 | I21: 岐阜 | J21: 1.316233728 | L21: 福岡 | M21: 0.5244724414 | O21: 青森 | P21: 1.838895102 | R21: 山口 | S21: 0.8188740482 | U21: 京都 | V21: 1.892424747 | X21: 東京 | Y21: 0.6105135535 | AA21: 三重 | AB21: 1.882648259 | AD21: 香川 | AE21: 1.485861572
A22: 20 | C22: 全国 | D22: 1.323516629 | F22: 全国 | G22: 1.157618358 | I22: 全国 | J22: 1.267506563 | L22: 岐阜 | M22: 0.5154430952 | O22: 全国 | P22: 1.808453076 | R22: 静岡 | S22: 0.8175115207 | U22: 香川 | V22: 1.888332801 | X22: 宮崎 | Y22: 0.6099762841 | AA22: 全国 | AB22: 1.833292401 | AD22: 兵庫 | AE22: 1.479320194
A23: 21 | C23: 愛媛 | D23: 1.322664513 | F23: 千葉 | G23: 1.151389545 | I23: 愛媛 | J23: 1.248992748 | L23: 岡山 | M23: 0.5147386232 | O23: 神奈川 | P23: 1.807342457 | R23: 福井 | S23: 0.802715655 | U23: 全国 | V23: 1.882025585 | X23: 山梨 | Y23: 0.6048937859 | AA23: 神奈川 | AB23: 1.826958379 | AD23: 千葉 | AE23: 1.472004676
A24: 22 | C24: 和歌山 | D24: 1.313014132 | F24: 広島 | G24: 1.137696316 | I24: 宮城 | J24: 1.241501626 | L24: 群馬 | M24: 0.5036794209 | O24: 広島 | P24: 1.787668734 | R24: 大分 | S24: 0.8009086673 | U24: 神奈川 | V24: 1.868418318 | X24: 岡山 | Y24: 0.6031462851 | AA24: 岩手 | AB24: 1.777679166 | AD24: 群馬 | AE24: 1.469648562
A25: 23 | C25: 熊本 | D25: 1.284911903 | F25: 熊本 | G25: 1.125788323 | I25: 千葉 | J25: 1.229948969 | L25: 石川 | M25: 0.5019960674 | O25: 富山 | P25: 1.773102433 | R25: 大阪 | S25: 0.7960576194 | U25: 静岡 | V25: 1.840552995 | X25: 高知 | Y25: 0.597658355 | AA25: 千葉 | AB25: 1.773655197 | AD25: 愛知 | AE25: 1.452107201
A26: 24 | C26: 宮城 | D26: 1.27363 | F26: 愛媛 | G26: 1.102701619 | I26: 熊本 | J26: 1.229639394 | L26: 佐賀 | M26: 0.4925356038 | O26: 千葉 | P26: 1.751422291 | R26: 福岡 | S26: 0.7938432125 | U26: 宮城 | V26: 1.837428202 | X26: 山口 | Y26: 0.5955649419 | AA26: 宮城 | AB26: 1.773573751 | AD26: 宮崎 | AE26: 1.430897782
A27: 25 | C27: 千葉 | D27: 1.268301919 | F27: 岩手 | G27: 1.08400396 | I27: 和歌山 | J27: 1.193597665 | L27: 全国 | M27: 0.4849364475 | O27: 宮城 | P27: 1.740833256 | R27: 奈良 | S27: 0.778451693 | U27: 三重 | V27: 1.837059243 | X27: 岐阜 | Y27: 0.5921979924 | AA27: 富山 | AB27: 1.75755387 | AD27: 全国 | AE27: 1.418450581
A28: 26 | C28: 佐賀 | D28: 1.23133901 | F28: 愛知 | G28: 1.069096882 | I28: 京都 | J28: 1.171781361 | L28: 香川 | M28: 0.4838316683 | O28: 宮崎 | P28: 1.733383402 | R28: 岡山 | S28: 0.777342996 | U28: 福井 | V28: 1.833067093 | X28: 群馬 | Y28: 0.5834727939 | AA28: 広島 | AB28: 1.740784683 | AD28: 青森 | AE28: 1.417771548
A29: 27 | C29: 兵庫 | D29: 1.202057509 | F29: 福井 | G29: 1.030351438 | I29: 佐賀 | J29: 1.156890856 | L29: 千葉 | M29: 0.4831203718 | O29: 愛媛 | P29: 1.731579877 | R29: 岐阜 | S29: 0.7434411615 | U29: 千葉 | V29: 1.819195482 | X29: 島根 | Y29: 0.5790504242 | AA29: 静岡 | AB29: 1.738909179 | AD29: 福岡 | AE29: 1.402141029
A30: 28 | C30: 山梨 | D30: 1.200321156 | F30: 静岡 | G30: 1.023041475 | I30: 兵庫 | J30: 1.112639594 | L30: 山口 | M30: 0.4813585291 | O30: 佐賀 | P30: 1.723874613 | R30: 群馬 | S30: 0.7399470988 | U30: 鹿児島 | V30: 1.787917323 | X30: 奈良 | Y30: 0.5779395057 | AA30: 福井 | AB30: 1.729368932 | AD30: 岡山 | AE30: 1.39599318
A31: 29 | C31: 宮崎 | D31: 1.17311303 | F31: 山形 | G31: 1.022724008 | I31: 岩手 | J31: 1.110272909 | L31: 愛知 | M31: 0.4811335999 | O31: 静岡 | P31: 1.687319608 | R31: 全国 | S31: 0.7244072268 | U31: 福島 | V31: 1.779152665 | X31: 大分 | Y31: 0.5734313489 | AA31: 愛媛 | AB31: 1.726598174 | AD31: 京都 | AE31: 1.380032094
A32: 30 | C32: 京都 | D32: 1.157543932 | F32: 佐賀 | G32: 1.016778644 | I32: 宮崎 | J32: 1.107716932 | L32: 京都 | M32: 0.4796452757 | O32: 岩手 | P32: 1.681130943 | R32: 佐賀 | S32: 0.7113857651 | U32: 福岡 | V32: 1.753243605 | X32: 石川 | Y32: 0.569259962 | AA32: 佐賀 | AB32: 1.725363087 | AD32: 静岡 | AE32: 1.380006732
A33: 31 | C33: 山形 | D33: 1.138505147 | F33: 青森 | G33: 0.9960767731 | I33: 山形 | J33: 1.097802375 | L33: 山梨 | M33: 0.4757125652 | O33: 山梨 | P33: 1.676033721 | R33: 宮崎 | S33: 0.7021845742 | U33: 山梨 | V33: 1.72993753 | X33: 佐賀 | Y33: 0.5684722309 | AA33: 京都 | AB33: 1.723594967 | AD33: 茨城 | AE33: 1.367592209
A34: 32 | C34: 富山 | D34: 1.126383169 | F34: 宮崎 | G34: 0.98640214 | I34: 愛知 | J34: 1.091026252 | L34: 奈良 | M34: 0.4724330301 | O34: 福井 | P34: 1.674671385 | R34: 石川 | S34: 0.7018677317 | U34: 佐賀 | V34: 1.728164409 | X34: 全国 | Y34: 0.5657858375 | AA34: 宮崎 | AB34: 1.717693216 | AD34: 新潟 | AE34: 1.367098681
A35: 33 | C35: 岩手 | D35: 1.124392773 | F35: 群馬 | G35: 0.97766766 | I35: 山梨 | J35: 1.090109661 | L35: 宮城 | M35: 0.4672032565 | O35: 鹿児島 | P35: 1.672126743 | R35: 京都 | S35: 0.692824614 | U35: 富山 | V35: 1.727149233 | X35: 京都 | Y35: 0.5518136054 | AA35: 鹿児島 | AB35: 1.712947474 | AD35: 埼玉 | AE35: 1.36433136
A36: 34 | C36: 青森 | D36: 1.108018831 | F36: 和歌山 | G36: 0.9732044378 | I36: 青森 | J36: 1.068131022 | L36: 大分 | M36: 0.4537093807 | O36: 秋田 | P36: 1.654649658 | R36: 東京 | S36: 0.6896773261 | U36: 群馬 | V36: 1.717614759 | X36: 千葉 | Y36: 0.5437062277 | AA36: 山梨 | AB36: 1.695003447 | AD36: 富山 | AE36: 1.361411732
A37: 35 | C37: 愛知 | D37: 1.101782288 | F37: 福岡 | G37: 0.9594003921 | I37: 福井 | J37: 1.046723301 | L37: 埼玉 | M37: 0.4411683424 | O37: 熊本 | P37: 1.645572055 | R37: 新潟 | S37: 0.6831326723 | U37: 愛媛 | V37: 1.71670593 | X37: 宮城 | Y37: 0.5320721253 | AA37: 秋田 | AB37: 1.671782763 | AD37: 熊本 | AE37: 1.341268272
A38: 36 | C38: 鹿児島 | D38: 1.095460042 | F38: 鹿児島 | G38: 0.9508987037 | I38: 鹿児島 | J38: 1.044496487 | L38: 島根 | M38: 0.4357968674 | O38: 京都 | P38: 1.637189208 | R38: 千葉 | S38: 0.6678059363 | U38: 秋田 | V38: 1.702058151 | X38: 愛知 | Y38: 0.5287927096 | AA38: 熊本 | AB38: 1.64454069 | AD38: 東京 | AE38: 1.334479562
A39: 37 | C39: 秋田 | D39: 1.07598447 | F39: 福島 | G39: 0.9327596495 | I39: 群馬 | J39: 1.017685106 | L39: 北海道 | M39: 0.4105007822 | O39: 愛知 | P39: 1.582915888 | R39: 宮城 | S39: 0.6585871951 | U39: 愛知 | V39: 1.695056819 | X39: 大阪 | Y39: 0.5110422343 | AA39: 福岡 | AB39: 1.628245038 | AD39: 大阪 | AE39: 1.326630359
A40: 38 | C40: 福井 | D40: 1.055358948 | F40: 兵庫 | G40: 0.9317561646 | I40: 福岡 | J40: 1.012891344 | L40: 愛媛 | M40: 0.4089153646 | O40: 福岡 | P40: 1.564599697 | R40: 兵庫 | S40: 0.6501780842 | U40: 宮崎 | V40: 1.688586714 | X40: 埼玉 | Y40: 0.4949938503 | AA40: 愛知 | AB40: 1.619818961 | AD40: 愛媛 | AE40: 1.311875524
A41: 39 | C41: 福岡 | D41: 1.040127256 | F41: 東京 | G41: 0.9261014118 | I41: 富山 | J41: 0.9958742353 | L41: 神奈川 | M41: 0.3994919282 | O41: 沖縄 | P41: 1.552543044 | R41: 長崎 | S41: 0.64534729 | U41: 広島 | V41: 1.649115595 | X41: 新潟 | Y41: 0.4831605099 | AA41: 福島 | AB41: 1.616203504 | AD41: 長崎 | AE41: 1.286330874
A42: 40 | C42: 群馬 | D42: 1.038091823 | F42: 香川 | G42: 0.9051219252 | I42: 静岡 | J42: 0.9889192636 | L42: 高知 | M42: 0.3992066083 | O42: 群馬 | P42: 1.541771244 | R42: 愛知 | S42: 0.6259599367 | U42: 熊本 | V42: 1.642602866 | X42: 長崎 | Y42: 0.4822874652 | AA42: 群馬 | AB42: 1.601157899 | AD42: 福島 | AE42: 1.226929373
A43: 41 | C43: 大分 | D43: 1.022378909 | F43: 山梨 | G43: 0.8871474513 | I43: 福島 | J43: 0.9723412034 | L43: 長崎 | M43: 0.3935296958 | O43: 福島 | P43: 1.529430456 | R43: 愛媛 | S43: 0.6140043106 | U43: 東京 | V43: 1.615778738 | X43: 愛媛 | Y43: 0.4776054257 | AA43: 沖縄 | AB43: 1.572465146 | AD43: 鹿児島 | AE43: 1.214749106
A44: 42 | C44: 福島 | D44: 0.9934190171 | F44: 埼玉 | G44: 0.8497825022 | I44: 秋田 | J44: 0.9634002361 | L44: 新潟 | M44: 0.3781392141 | O44: 山形 | P44: 1.512296167 | R44: 埼玉 | S44: 0.6032344278 | U44: 沖縄 | V44: 1.611556608 | X44: 北海道 | Y44: 0.4696734495 | AA44: 山形 | AB44: 1.536115375 | AD44: 大分 | AE44: 1.193250414
A45: 43 | C45: 石川 | D45: 0.9816480963 | F45: 長崎 | G45: 0.7894970283 | I45: 大分 | J45: 0.9048365068 | L45: 山形 | M45: 0.3737910197 | O45: 兵庫 | P45: 1.501650064 | R45: 神奈川 | S45: 0.5862893169 | U45: 兵庫 | V45: 1.581934249 | X45: 神奈川 | Y45: 0.459486221 | AA45: 兵庫 | AB45: 1.528208735 | AD45: 山形 | AE45: 1.177425903
A46: 44 | C46: 沖縄 | D46: 0.9776370473 | F46: 秋田 | G46: 0.7644560601 | I46: 沖縄 | J46: 0.9045443522 | L46: 大阪 | M46: 0.3693882746 | O46: 石川 | P46: 1.483644164 | R46: 北海道 | S46: 0.5803032336 | U46: 山形 | V46: 1.580051136 | X46: 山形 | Y46: 0.4383129999 | AA46: 大分 | AB46: 1.478267856 | AD46: 佐賀 | AE46: 1.169265033
A47: 45 | C47: 静岡 | D47: 0.9716004509 | F47: 沖縄 | G47: 0.7611207114 | I47: 石川 | J47: 0.8785974067 | L47: 熊本 | M47: 0.3606601523 | O47: 大分 | P47: 1.476088289 | R47: 山形 | S47: 0.557327128 | U47: 大分 | V47: 1.482409133 | X47: 兵庫 | Y47: 0.4155691405 | AA47: 東京 | AB47: 1.474331157 | AD47: 山梨 | AE47: 1.152603351
A48: 46 | C48: 東京 | D48: 0.8311936547 | F48: 富山 | G48: 0.740668866 | I48: 東京 | J48: 0.8638176034 | L48: 広島 | M48: 0.3271106054 | O48: 東京 | P48: 1.400241618 | R48: 三重 | S48: 0.5483758934 | U48: 埼玉 | V48: 1.45301693 | X48: 熊本 | Y48: 0.4149012962 | AA48: 石川 | AB48: 1.447857369 | AD48: 広島 | AE48: 1.126134609
A49: 47 | C49: 長崎 | D49: 0.8196523419 | F49: 大分 | G49: 0.681500466 | I49: 埼玉 | J49: 0.8173271339 | L49: 三重 | M49: 0.3032551238 | O49: 埼玉 | P49: 1.242356181 | R49: 熊本 | S49: 0.5168145431 | U49: 長崎 | V49: 1.434844318 | X49: 広島 | Y49: 0.38947756 | AA49: 埼玉 | AB49: 1.312320984 | AD49: 三重 | AE49: 1.114661114
A50: 48 | C50: 埼玉 | D50: 0.8011878382 | F50: 石川 | G50: 0.6754375661 | I50: 長崎 | J50: 0.8090235438 | L50: 兵庫 | M50: 0.2995925541 | O50: 長崎 | P50: 1.213182038 | R50: 広島 | S50: 0.5114192792 | U50: 石川 | V50: 1.377305298 | X50: 三重 | Y50: 0.3857583196 | AA50: 長崎 | AB50: 1.291311009 | AD50: 石川 | AE50: 1.087249528
